fUSD/lending_fUSD_20241202
["ID","MTS","AMOUNT","RATE_DAILY","PERIOD"]
[343974807,1733164807640,670.81,0.00025,120]
[343974808,1733164808498,1208.56,0.00025,120]
[343974809,1733164808982,500.0,0.00025,120]
[343974810,1733164809217,500.0,0.00025,120]
[343974811,1733164811979,2243.84,0.00025,120]
[343974812,1733164813143,500.0,0.00025,120]
[343974813,1733164813944,5778.48,0.00025,120]
[343974814,1733164814061,500.0,0.00025,120]
[343974815,1733164814143,1199.65,0.00025,120]
[343974816,1733164815230,1939.33,0.00025,120]
[343974817,1733164815348,500.0,0.00025,120]
[343974818,1733164815394,7094.27,0.00025,120]
[343974819,1733164815561,8255.44,0.00025,120]
[343974820,1733164816819,500.0,0.00025,120]
[343974821,1733164817788,500.0,0.00025,120]
[343974822,1733164818412,2663.84,0.00025,120]
[343974823,1733164818555,10462.63,0.00025,120]
[343974824,1733164818849,508.74333956,0.00025,120]
[343974825,1733164819890,500.0,0.00025,120]
[343974826,1733164820061,786.75,0.00025,120]
[343974827,1733164821202,477.94772737,0.00025,120]
[343974828,1733164821245,1210.99,0.00025,120]
[343974829,1733164821297,2272.69,0.00025,120]
[343974830,1733164821375,500.0,0.00025,120]
[343974831,1733164821977,500.0,0.00025,120]
[343974832,1733164822217,500.0,0.00025,120]
[343974833,1733164822568,6535.69,0.00025,120]
[343974834,1733164823123,500.0,0.00025,120]
[343974835,1733164823233,500.0,0.00025,120]
[343974836,1733164823536,612.43,0.00025,120]
[343974837,1733164823586,6541.18,0.00025,120]
[343974838,1733164824824,717.67,0.00025,120]
[343974839,1733164825023,577.57,0.00025,120]
[343974840,1733164825103,3133.25,0.00025,120]
[343974841,1733164825201,1334.68,0.00025,120]
[343974842,1733164825580,1343.68,0.00025,120]
[343974843,1733164825691,500.0,0.00025,120]
[343974844,1733164825757,500.0,0.00025,120]
[343974845,1733164825878,1774.35,0.00025,120]
[343974846,1733164826047,3378.15,0.00025,120]
[343974847,1733164828024,500.0,0.00025,120]
[343974848,1733164828205,500.0,0.00025,120]
[343974849,1733164829825,500.0,0.00025,120]
[343974850,1733164830776,15426.89,0.00025,120]
[343974851,1733164830932,5759.5,0.00025,120]
[343974852,1733164831021,500.0,0.00025,120]
[343974853,1733164831518,1657.74,0.00025,120]
[343974854,1733164831679,500.0,0.00025,120]
[343974855,1733164832144,5814.74,0.00025,120]
[343974856,1733164832742,500.0,0.00025,120]
[343974857,1733164834003,500.0,0.00025,120]
[343974858,1733164834245,504.26101258,0.00025,120]
[343974859,1733164834492,632.35,0.00025,120]
[343974860,1733164835295,2872.73,0.00025,120]
[343974861,1733164835654,500.0,0.00025,120]
[343974862,1733164835753,500.0,0.00025,120]
[343974863,1733164836160,2472.03,0.00025,120]
[343974864,1733164836244,500.0,0.00025,120]
[343974865,1733164836516,500.0,0.00025,120]
[343974866,1733164836879,11128.46,0.00025,120]
[343974867,1733164838945,2992.55,0.00025,120]
[343974868,1733164839434,500.0,0.00025,120]
[343974869,1733164839579,4287.84,0.00025,120]
[343974870,1733164840442,500.0,0.00025,120]
[343974871,1733164840677,28686.17,0.00025,120]
[343974872,1733164841414,2766.97,0.00025,120]
[343974873,1733164842486,500.0,0.00025,120]
[343974874,1733164842839,1160.01,0.00025,120]
[343974875,1733164842973,823.39,0.00025,120]
[343974876,1733164843359,500.0,0.00025,120]
[343974877,1733164843817,949.26,0.00025,120]
[343974878,1733164843864,6724.87,0.00025,120]
[343974879,1733164843925,500.0,0.00025,120]
[343974880,1733164844010,2504.54,0.00025,120]
[343974881,1733164844496,500.0,0.00025,120]
[343974882,1733164844728,211.56239129,0.00025,120]
[343974883,1733164844814,4907.64,0.00025,120]
[343974884,1733164846302,646.72,0.00025,120]
[343974885,1733164846703,2399.96,0.00025,120]
[343974886,1733164847108,500.0,0.00025,120]
[343974887,1733164847195,37618.18,0.00025,120]
[343974888,1733164848087,500.0,0.00025,120]
[343974889,1733164849675,500.0,0.00025,120]
[343974890,1733164849765,20204.3,0.00025,120]
[343974891,1733164849821,5899.68,0.00025,120]
[343974892,1733164850788,500.0,0.00025,120]
[343974893,1733164852155,3875.53,0.00025,120]
[343974894,1733164852199,1146.34,0.00025,120]
[343974895,1733164852249,500.0,0.00025,120]
[343974896,1733164852394,500.0,0.00025,120]
[343974897,1733164852463,1707.83,0.00025,120]
[343974898,1733164852617,6334.87,0.00025,120]
[343974899,1733164852825,2682.19,0.00025,120]
[343974900,1733164853294,664.42,0.00025,120]
[343974901,1733164853702,500.0,0.00025,120]
[343974902,1733164854031,4709.62,0.00025,120]
[343974903,1733164854848,500.0,0.00025,120]
[343974904,1733164855613,1929.88,0.00025,120]
[343974905,1733164855683,1172.8,0.00025,120]
[343974906,1733164855826,2860.74,0.00025,120]
[343974907,1733164856783,500.0,0.00025,120]
[343974908,1733164857078,500.0,0.00025,120]
[343974909,1733164857457,613.71,0.00025,120]
[343974910,1733164857963,1475.83,0.00025,120]
[343974911,1733164858191,2995.88,0.00025,120]
[343974912,1733164858263,1805.59,6.814e-05,2]
[343974913,1733164858677,500.0,0.00025,120]
[343974914,1733164859297,812.17,0.00025,120]
[343974915,1733164859371,3959.61,0.00025,120]
[343974916,1733164860623,500.0,0.00025,120]
[343974917,1733164861078,4189.94,0.00025,120]
[343974918,1733164862841,661.53,0.00025,120]
[343974919,1733164862899,500.0,0.00025,120]
[343974920,1733164863693,5395.92,0.00025,120]
[343974921,1733164863952,250.0,6.814e-05,2]
[343974922,1733164864875,500.0,0.00025,120]
[343974923,1733164865406,500.0,0.00025,120]
[343974924,1733164866060,699.89,0.00025,120]
[343974925,1733164866444,8473.65,0.00025,120]
[343974926,1733164866732,4662.32,0.00025,120]
[343974927,1733164866828,500.0,0.00025,120]
[343974928,1733164866932,6613.61,0.00025,120]
[343974929,1733164867799,734.99,0.00025,120]
[343974930,1733164867856,500.0,0.00025,120]
[343974931,1733164867908,500.0,0.00025,120]
[343974932,1733164868744,1354.05,0.00025,120]
[343974933,1733164868945,500.0,0.00025,120]
[343974934,1733164869506,560.66,0.00025,120]
[343974935,1733164869777,500.0,0.00025,120]
[343974936,1733164870191,500.0,0.00025,120]
[343974937,1733164871395,15549.06,0.00025,120]
[343974938,1733164871511,500.0,0.00025,120]
[343974939,1733164871943,9233.12,0.00025,120]
[343974940,1733164873004,500.0,0.00025,120]
[343974941,1733164873968,637.79,0.00025,120]
[343974942,1733164874011,1871.06,0.00025,120]
[343974943,1733164875142,5662.27,0.00025,120]
[343974944,1733164875212,663.43,0.00025,120]
[343974945,1733164875814,500.0,0.00025,120]
[343974946,1733164875929,500.0,0.00025,120]
[343974947,1733164875993,2057.84,0.00025,120]
[343974948,1733164876116,500.0,0.00025,120]
[343974949,1733164876419,4149.77,0.00025,120]
[343974950,1733164876817,500.0,0.00025,120]
[343974951,1733164877278,500.0,0.00025,120]
[343974952,1733164877927,2577.55,0.00025,120]
[343974953,1733164878308,500.0,0.00025,120]
[343974954,1733164878991,500.0,0.00025,120]
[343974955,1733164879780,500.0,0.00025,120]
[343974956,1733164880520,3075.38,0.00025,120]
[343974957,1733164881199,3167.89,0.00025,120]
[343974958,1733164882022,510.52,0.00025,120]
[343974959,1733164882548,2839.99,0.00025,120]
[343974960,1733164883455,20239.93,0.00025,120]
[343974961,1733164883601,538.9,0.00025,120]
[343974962,1733164883859,500.0,0.00025,120]
[343974963,1733164883912,2151.5,0.00025,120]
[343974964,1733164883963,500.0,0.00025,120]
[343974965,1733164884845,745.66,0.00025,120]
[343974966,1733164884940,500.0,0.00025,120]
[343974967,1733164885210,2523.1,0.00025,120]
[343974968,1733164885868,10557.14,0.00025,120]
[343974969,1733164886005,4686.97,0.00025,120]
[343974970,1733164886088,2996.13,0.00025,120]
[343974971,1733164886404,500.0,0.00025,120]
[343974972,1733164888351,509.46908609,0.00025,120]
[343974973,1733164888821,500.0,0.00025,120]
[343974974,1733164888957,500.0,0.00025,120]
[343974975,1733164889468,1127.27,0.00025,120]
[343974976,1733164889893,7401.19,0.00025,120]
[343974977,1733164889937,585.61,0.00025,120]
[343974978,1733164889980,1552.4,0.00025,120]
[343974979,1733164890590,500.0,0.00025,120]
[343974980,1733164890687,3312.47,0.00025,120]
[343974981,1733164891002,2714.19,0.00025,120]
[343974982,1733164891301,500.0,0.00025,120]
[343974983,1733164892796,1127.92,0.00025,120]
[343974984,1733164892988,500.0,0.00025,120]
[343974985,1733164893424,4942.77,0.00025,120]
[343974986,1733164893477,2225.99,0.00025,120]
[343974987,1733164893920,2252.55,0.00025,120]
[343974988,1733164893966,500.0,0.00025,120]
[343974989,1733164894641,709.23,0.00025,120]
[343974990,1733164894824,11645.48,0.00025,120]
[343974991,1733164895005,3017.84,0.00025,120]
[343974993,1733164896871,500.0,0.00025,120]
[343974994,1733164897176,500.0,0.00025,120]
[343974995,1733164897683,910.84,0.00025,120]
[343974996,1733164898548,3811.49,0.00025,120]
[343974997,1733164899404,520.4,0.00025,120]
[343974998,1733164899584,3028.56,0.00025,120]
[343974999,1733164900014,543.53,0.00025,120]
[343975000,1733164901159,500.0,0.00025,120]
[343975001,1733164902140,313.45232225,0.00025,120]
[343975003,1733164966553,1500.0,6.814e-05,2]
[343975004,1733164989724,-186.54767775,0.00025,120]
[343975005,1733164989763,-1171.64,0.00025,120]
[343975006,1733164989801,-1783.48,0.00025,120]
[343975007,1733164989841,-4434.14,0.00025,120]
[343975008,1733164989880,-500.0,0.00025,120]
[343975009,1733164989922,-500.0,0.00025,120]
[343975010,1733164989963,-3951.56,0.00025,120]
[343975011,1733164990003,-16236.54,0.00025,120]
[343975012,1733164990043,-500.0,0.00025,120]
[343975013,1733164990081,-3842.64,0.00025,120]
[343975014,1733164990120,-5416.08,0.00025,120]
[343975015,1733164990160,-3262.84,0.00025,120]
[343975016,1733164990199,-500.0,0.00025,120]
[343975017,1733164990240,-881.75,0.00025,120]
[343975018,1733164990279,-509.67239961,0.00025,120]
[343975019,1733164990318,-1498.15,0.00025,120]
[343975020,1733164990358,-3750.15,0.00025,120]
[343975021,1733164990398,-681.0,0.00025,120]
[343975022,1733164990437,-1217.55,0.00025,120]
[343975023,1733164990476,-500.0,0.00025,120]
[343975024,1733164990514,-578.41,0.00025,120]
[343975025,1733164990553,-1797.6,0.00025,120]
[343975026,1733164990846,-500.0,0.00025,120]
[343975027,1733164990940,-500.0,0.00025,120]
[343975028,1733164990977,-500.0,0.00025,120]
[343975029,1733164991015,-500.0,0.00025,120]
[343975030,1733164991049,-2963.03,0.00025,120]
[343975031,1733164991085,-1131.7,0.00025,120]
[343975032,1733164991123,-779.37,0.00025,120]
[343975033,1733164991163,-5129.12,0.00025,120]
[343975034,1733164991203,-500.0,0.00025,120]
[343975035,1733164991241,-500.0,0.00025,120]
[343975036,1733164991281,-500.0,0.00025,120]
[343975037,1733164991319,-500.0,0.00025,120]
[343975038,1733164991359,-24112.17,0.00025,120]
[343975039,1733164991398,-500.0,0.00025,120]
[343975040,1733164991436,-500.0,0.00025,120]
[343975041,1733164991476,-683.86,0.00025,120]
[343975042,1733164991514,-4196.7,0.00025,120]
[343975043,1733164991554,-500.0,0.00025,120]
[343975044,1733164991592,-2518.83,0.00025,120]
[343975045,1733164991629,-3453.43,0.00025,120]
[343975046,1733164991671,-500.0,0.00025,120]
[343975047,1733164991712,-702.65,0.00025,120]
[343975048,1733164991752,-500.0,0.00025,120]
[343975049,1733164991792,-1374.81,0.00025,120]
[343975050,1733164991831,-1022.35,0.00025,120]
[343975051,1733164991871,-500.0,0.00025,120]
[343975052,1733164991909,-681.53,0.00025,120]
[343975053,1733164991946,-7439.66,0.00025,120]
[343975054,1733164991985,-500.0,0.00025,120]
[343975055,1733164992022,-3470.09,0.00025,120]
[343975056,1733164992061,-1462.74,0.00025,120]
[343975057,1733164992106,-1271.02,0.00025,120]
[343975058,1733164992150,-3617.71,0.00025,120]
[343975059,1733164992192,-500.0,0.00025,120]
[343975060,1733164992231,-1394.85,0.00025,120]
[343975061,1733164992269,-500.0,0.00025,120]
[343975062,1733164992308,-11345.77,0.00025,120]
[343975063,1733164992347,-500.0,0.00025,120]
[343975064,1733164992386,-7334.46,0.00025,120]
[343975065,1733164992426,-1575.2,0.00025,120]
[343975066,1733164992466,-36215.25,0.00025,120]
[343975067,1733164992505,-1385.52,0.00025,120]
[343975068,1733164992544,-500.0,0.00025,120]
[343975069,1733164992582,-500.0,0.00025,120]
[343975070,1733164992622,-989.61,0.00025,120]
[343975071,1733164992663,-1639.53,0.00025,120]
[343975072,1733164992703,-779.06,0.00025,120]
[343975073,1733164992741,-3774.12,0.00025,120]
[343975074,1733164992779,-6416.48,0.00025,120]
[343975075,1733164992817,-1632.86,0.00025,120]
[343975076,1733164992855,-2811.84,0.00025,120]
[343975077,1733164992893,-500.0,0.00025,120]
[343975078,1733164992929,-500.0,0.00025,120]
[343975079,1733164992967,-3063.28,0.00025,120]
[343975080,1733164993004,-375.88865946,0.00025,120]
[343975081,1733164993042,-500.0,0.00025,120]
[343975082,1733164993079,-500.0,0.00025,120]
[343975083,1733164993117,-500.0,0.00025,120]
[343975084,1733164993154,-1197.21,0.00025,120]
[343975085,1733164993191,-760.64,0.00025,120]
[343975086,1733164993231,-581.13,0.00025,120]
[343975087,1733164993268,-500.0,0.00025,120]
[343975088,1733164993306,-2561.5,0.00025,120]
[343975089,1733164993344,-500.0,0.00025,120]
[343975090,1733164993382,-9049.72,0.00025,120]
[343975091,1733164993421,-500.0,0.00025,120]
[343975092,1733164993457,-500.0,0.00025,120]
[343975093,1733164993496,-3511.4,0.00025,120]
[343975094,1733164993534,-6477.11,0.00025,120]
[343975095,1733164993573,-1000.46,0.00025,120]
[343975096,1733164993612,-3316.35,0.00025,120]
[343975097,1733164993653,-3531.32,0.00025,120]
[343975098,1733164993691,-3672.8,0.00025,120]
[343975099,1733164993730,-500.0,0.00025,120]
[343975100,1733164993768,-717.04,0.00025,120]
[343975101,1733164993806,-6928.17,0.00025,120]
[343975102,1733164993844,-2677.04,0.00025,120]
[343975103,1733164993880,-500.0,0.00025,120]
[343975104,1733164993920,-393.17192432,0.00025,120]
[343975105,1733164993957,-2237.16,0.00025,120]
[343975106,1733164993995,-500.0,0.00025,120]
[343975107,1733164994034,-521.14564129,0.00025,120]
[343975108,1733164994073,-1038.79,0.00025,120]
[343975109,1733164994113,-2482.29,0.00025,120]
[343975110,1733164994152,-500.0,0.00025,120]
[343975111,1733164994191,-2606.1,0.00025,120]
[343975112,1733164994232,-22896.17,0.00025,120]
[343975113,1733164994271,-1926.97,0.00025,120]
[343975114,1733164994311,-12175.7,0.00025,120]
[343975115,1733164994360,-815.17,0.00025,120]
[343975116,1733164994405,-5666.22,0.00025,120]
[343975117,1733164994445,-500.0,0.00025,120]
[343975118,1733164994484,-500.0,0.00025,120]
[343975119,1733164994524,-500.0,0.00025,120]
[343975120,1733164994934,-3471.34,0.00025,120]
[343975121,1733164994974,-500.0,0.00025,120]
[343975122,1733164995015,-2152.16,0.00025,120]
[343975123,1733164995054,-1198.94,0.00025,120]
[343975124,1733164995094,-5748.83,0.00025,120]
[343975125,1733164995136,-500.0,0.00025,120]
[343975126,1733164995188,-2647.58,0.00025,120]
[343975127,1733164995229,-500.0,0.00025,120]
[343975128,1733164995268,-2228.68,0.00025,120]
[343975129,1733164995308,-500.0,0.00025,120]
[343975130,1733164995347,-835.94,0.00025,120]
[343975131,1733164995387,-500.0,0.00025,120]
[343975132,1733164995428,-500.0,0.00025,120]
[343975133,1733164995466,-595.49,0.00025,120]
[343975134,1733164995507,-571.61,0.00025,120]
[343975135,1733164995545,-500.0,0.00025,120]
[343975136,1733164995584,-1709.75,0.00025,120]
[343975137,1733164995624,-670.33,0.00025,120]
[343975138,1733164995662,-2611.31,0.00025,120]
[343975139,1733164995700,-780.49,0.00025,120]
[343975140,1733164995740,-500.0,0.00025,120]
[343975141,1733164995778,-500.0,0.00025,120]
[343975142,1733164995817,-701.19,0.00025,120]
[343975143,1733164995856,-500.0,0.00025,120]
[343975144,1733164995895,-2816.53,0.00025,120]
[343975145,1733164995936,-592.76,0.00025,120]
[343975146,1733164995975,-347.65010157,0.00025,120]
[343975147,1733164996013,-500.0,0.00025,120]
[343975148,1733164996051,-2359.63,0.00025,120]
[343975149,1733164996087,-1057.77,0.00025,120]
[343975150,1733164996127,-6035.95,0.00025,120]
[343975151,1733164996164,-500.0,0.00025,120]
[343975152,1733164996204,-1482.39,0.00025,120]
[343975153,1733164996243,-500.0,0.00025,120]
[343975154,1733164996281,-2588.7,0.00025,120]
[343975155,1733164996323,-1344.06,0.00025,120]
[343975156,1733164996361,-500.0,0.00025,120]
[343975157,1733164996399,-577.19,0.00025,120]
[343975158,1733164996438,-1136.16,0.00025,120]
[343975159,1733164996476,-7999.92,0.00025,120]
[343975160,1733164996513,-500.0,0.00025,120]
[343975161,1733164996550,-2035.45,0.00025,120]
[343975162,1733164996587,-1144.31,0.00025,120]
[343975163,1733164996624,-500.0,0.00025,120]
[343975164,1733164996662,-2723.16,0.00025,120]
[343975165,1733164996700,-1476.57,0.00025,120]
[343975166,1733164996739,-500.0,0.00025,120]
[343975167,1733164996775,-500.0,0.00025,120]
[343975168,1733164996815,-537.52,0.00025,120]
[343975169,1733164996852,-3779.42,0.00025,120]
[343975170,1733164996889,-500.0,0.00025,120]
[343975171,1733164996928,-1117.94,0.00025,120]
[343975172,1733164996965,-500.0,0.00025,120]
[343975173,1733164997003,-500.0,0.00025,120]
[343975174,1733164997040,-2710.89,0.00025,120]
[343975175,1733164997078,-500.0,0.00025,120]
[343975176,1733164997116,-4974.05,0.00025,120]
[343975177,1733164997156,-500.0,0.00025,120]
[343975178,1733164997192,-500.0,0.00025,120]
[343975179,1733164997229,-500.0,0.00025,120]
[343975180,1733164997268,-500.0,0.00025,120]
[343975181,1733164997307,-2951.81,0.00025,120]
[343975182,1733164997346,-500.0,0.00025,120]
[343975183,1733164997385,-500.0,0.00025,120]
[343975184,1733164997424,-500.0,0.00025,120]
[343975185,1733164998669,2075.45,0.00025,120]
[343975186,1733164998728,500.0,0.00025,120]
[343975187,1733164998775,4181.06,0.00025,120]
[343975188,1733164999666,15629.46,0.00025,120]
[343975189,1733164999719,2406.93,0.00025,120]
[343975190,1733165000955,608.48,0.00025,120]
[343975191,1733165001148,500.0,0.00025,120]
[343975192,1733165001351,2681.22,0.00025,120]
[343975193,1733165001916,1111.82,0.00025,120]
[343975194,1733165002098,500.0,0.00025,120]
[343975195,1733165002373,500.0,0.00025,120]
[343975196,1733165002834,500.0,0.00025,120]
[343975197,1733165003184,995.49,0.00025,120]
[343975198,1733165005758,500.0,0.00025,120]
[343975199,1733165006640,816.57,0.00025,120]
[343975200,1733165007281,8237.64,0.00025,120]
[343975201,1733165007508,7016.28,0.00025,120]
[343975202,1733165008057,14540.19,0.00025,120]
[343975203,1733165008203,500.0,0.00025,120]
[343975204,1733165008368,500.0,0.00025,120]
[343975205,1733165008420,1437.55,0.00025,120]
[343975206,1733165008468,500.0,0.00025,120]
[343975207,1733165008528,2709.3,0.00025,120]
[343975208,1733165009471,2017.86,0.00025,120]
[343975209,1733165009534,505.79,0.00025,120]
[343975210,1733165009634,2414.03,0.00025,120]
[343975211,1733165009827,150.0,0.00025,120]
[343975212,1733165010546,500.0,0.00025,120]
[343975213,1733165010947,789.09,0.00025,120]
[343975214,1733165011104,1791.81,0.00025,120]
[343975215,1733165011466,500.0,0.00025,120]
[343975216,1733165011941,1862.77,0.00025,120]
[343975217,1733165012001,500.0,0.00025,120]
[343975218,1733165012333,500.0,0.00025,120]
[343975219,1733165013038,500.0,0.00025,120]
[343975220,1733165013159,5517.24,0.00025,120]
[343975221,1733165013991,979.14,0.00025,120]
[343975222,1733165014376,1428.98,0.00025,120]
[343975223,1733165014423,500.0,0.00025,120]
[343975224,1733165014996,1356.11,0.00025,120]
[343975225,1733165017055,500.0,0.00025,120]
[343975226,1733165017316,869.09,0.00025,120]
[343975227,1733165017381,2177.93,0.00025,120]
[343975228,1733165017608,500.0,0.00025,120]
[343975229,1733165017766,571.43,0.00025,120]
[343975230,1733165018054,540.12,0.00025,120]
[343975231,1733165018094,500.0,0.00025,120]
[343975232,1733165020372,6070.92,0.00025,120]
[343975233,1733165020436,1833.55,0.00025,120]
[343975234,1733165020546,500.0,0.00025,120]
[343975235,1733165021502,500.0,0.00025,120]
[343975236,1733165021579,500.0,0.00025,120]
[343975237,1733165022080,1537.61,0.00025,120]
[343975238,1733165022413,500.0,0.00025,120]
[343975239,1733165022458,500.0,0.00025,120]
[343975240,1733165022508,962.28,0.00025,120]
[343975241,1733165022914,942.48,0.00025,120]
[343975242,1733165024359,651.47,0.00025,120]
[343975243,1733165024403,23400.08,0.00025,120]
[343975244,1733165025847,541.44699893,0.00025,120]
[343975245,1733165026584,570.69,0.00025,120]
[343975246,1733165026628,1863.44,0.00025,120]
[343975247,1733165027420,2608.35,0.00025,120]
[343975248,1733165027463,1088.56,0.00025,120]
[343975249,1733165027801,8470.76,0.00025,120]
[343975250,1733165028155,500.0,0.00025,120]
[343975251,1733165028201,500.0,0.00025,120]
[343975252,1733165028632,633.96,0.00025,120]
[343975253,1733165029069,2524.77,0.00025,120]
[343975254,1733165029807,500.0,0.00025,120]
[343975255,1733165030008,500.0,0.00025,120]
[343975256,1733165031201,563.32,0.00025,120]
[343975257,1733165031819,657.67,0.00025,120]
[343975258,1733165032831,1282.16,0.00025,120]
[343975259,1733165032995,3673.81,0.00025,120]
[343975260,1733165034637,617.77012198,0.00025,120]
[343975261,1733165035337,836.33,0.00025,120]
[343975262,1733165035686,500.0,0.00025,120]
[343975263,1733165036882,4175.32,0.00025,120]
[343975264,1733165037743,500.0,0.00025,120]
[343975265,1733165037863,14901.19,0.00025,120]
[343975266,1733165037904,1819.94,0.00025,120]
[343975267,1733165038324,500.0,0.00025,120]
[343975268,1733165038742,500.0,0.00025,120]
[343975269,1733165040767,500.0,0.00025,120]
[343975270,1733165040837,1413.29,0.00025,120]
[343975271,1733165040886,503.8,0.00025,120]
[343975272,1733165041010,500.0,0.00025,120]
[343975273,1733165041906,552.84,0.00025,120]
[343975274,1733165042925,3601.32,0.00025,120]
[343975275,1733165043951,554.87,0.00025,120]
[343975276,1733165044194,771.58,0.00025,120]
[343975277,1733165044554,500.0,0.00025,120]
[343975278,1733165044836,1011.24,0.00025,120]
[343975279,1733165045330,33125.61,0.00025,120]
[343975280,1733165045885,500.0,0.00025,120]
[343975281,1733165045925,2802.18,0.00025,120]
[343975282,1733165047828,791.72,0.00025,120]
[343975283,1733165048675,500.0,0.00025,120]
[343975284,1733165049107,1945.07,0.00025,120]
[343975285,1733165049974,1725.23,0.00025,120]
[343975286,1733165051264,500.0,0.00025,120]
[343975287,1733165051595,3198.43,0.00025,120]
[343975288,1733165053128,500.0,0.00025,120]
[343975289,1733165053213,921.62,0.00025,120]
[343975290,1733165053384,500.0,0.00025,120]
[343975291,1733165053968,500.0,0.00025,120]
[343975292,1733165054800,2720.79,0.00025,120]
[343975293,1733165055229,10117.25,0.00025,120]
[343975294,1733165056002,500.0,0.00025,120]
[343975295,1733165056166,500.0,0.00025,120]
[343975296,1733165056340,1351.01,0.00025,120]
[343975297,1733165056390,2123.77,0.00025,120]
[343975298,1733165056671,2934.89,0.00025,120]
[343975299,1733165056835,839.53,0.00025,120]
[343975300,1733165057393,500.0,0.00025,120]
[343975301,1733165057512,500.0,0.00025,120]
[343975302,1733165057933,552.4014609,0.00025,120]
[343975303,1733165058443,2643.47,0.00025,120]
[343975304,1733165058661,1158.2,0.00025,120]
[343975305,1733165059029,1917.98,0.00025,120]
[343975306,1733165061035,500.0,0.00025,120]
[343975307,1733165061118,867.27,0.00025,120]
[343975308,1733165061174,500.0,0.00025,120]